[Event "Titled Tuesday Blitz May 9 Late 2023"]
[White "Andreikin, Dmitry"]
[Black "Makarian, Rudik"]
[WhiteFideId "4158814"]
[BlackFideId "44105681"]
[WhiteElo "2736"]
[BlackElo "2461"]
[Result "1/2-1/2"]
[Round "10"]
[TimeControl "180+2"]
[Date "2023.05.09"]
[WhiteClock "0:00:05"]
[BlackClock "0:00:05"]

1. c4 {[%clk 0:03:00]}  Nf6 {[%clk 0:02:59]} 2. Nc3 {[%clk 0:03:00]}  e6 {[%clk 0:02:59]} 3. e4 {[%clk 0:03:00]}  d5 {[%clk 0:03:00]} 4. e5 {[%clk 0:02:59]}  d4 {[%clk 0:02:59]} 5. exf6 {[%clk 0:02:59]}  dxc3 {[%clk 0:02:59]} 6. bxc3 {[%clk 0:02:58]}  Qxf6 {[%clk 0:02:59]} 7. Nf3 {[%clk 0:02:57]}  Nc6 {[%clk 0:02:58]} 8. Bd3 {[%clk 0:02:54]}  Bd6 {[%clk 0:02:43]} 9. Be4 {[%clk 0:02:52]}  Ne5 {[%clk 0:02:41]} 10. d4 {[%clk 0:02:42]}  Nxf3+ {[%clk 0:02:41]} 11. Bxf3 {[%clk 0:02:40]}  c6 {[%clk 0:02:34]} 12. c5 {[%clk 0:02:30]}  Bc7 {[%clk 0:02:32]} 13. O-O {[%clk 0:02:30]}  O-O {[%clk 0:02:33]} 14. Be3 {[%clk 0:02:30]}  e5 {[%clk 0:02:19]} 15. Rb1 {[%clk 0:02:30]}  e4 {[%clk 0:02:08]} 16. Be2 {[%clk 0:02:24]}  b6 {[%clk 0:01:51]} 17. g3 {[%clk 0:01:56]}  bxc5 {[%clk 0:01:40]} 18. dxc5 {[%clk 0:01:56]}  Bh3 {[%clk 0:01:37]} 19. Re1 {[%clk 0:01:56]}  Be5 {[%clk 0:01:33]} 20. Bg4 {[%clk 0:01:42]}  Bxg4 {[%clk 0:01:27]} 21. Qxg4 {[%clk 0:01:41]}  Qg6 {[%clk 0:01:13]} 22. Qxg6 {[%clk 0:01:34]}  hxg6 {[%clk 0:01:14]} 23. Bd4 {[%clk 0:01:33]}  Bxd4 {[%clk 0:01:10]} 24. cxd4 {[%clk 0:01:34]}  f5 {[%clk 0:01:10]} 25. Rb7 {[%clk 0:01:31]}  Rf7 {[%clk 0:01:10]} 26. Reb1 {[%clk 0:01:29]}  Rd8 {[%clk 0:01:04]} 27. Rxf7 {[%clk 0:01:19]}  Kxf7 {[%clk 0:01:04]} 28. Rb7+ {[%clk 0:01:20]}  Kf6 {[%clk 0:01:05]} 29. Rxa7 {[%clk 0:01:20]}  Rxd4 {[%clk 0:01:05]} 30. Ra6 {[%clk 0:01:20]}  Rd1+ {[%clk 0:01:02]} 31. Kg2 {[%clk 0:01:20]}  Rd2 {[%clk 0:01:02]} 32. Rxc6+ {[%clk 0:01:16]}  Kf7 {[%clk 0:00:50]} 33. Rc7+ {[%clk 0:01:11]}  Kf6 {[%clk 0:00:50]} 34. Rc6+ {[%clk 0:01:11]}  Kf7 {[%clk 0:00:50]} 35. Kf1 {[%clk 0:01:06]}  Rxa2 {[%clk 0:00:49]} 36. h4 {[%clk 0:01:05]}  Rc2 {[%clk 0:00:49]} 37. Ke1 {[%clk 0:01:05]}  Kg8 {[%clk 0:00:31]} 38. Rc8+ {[%clk 0:01:02]}  Kf7 {[%clk 0:00:31]} 39. Rc6 {[%clk 0:01:02]}  Kg8 {[%clk 0:00:31]} 40. Rc7 {[%clk 0:01:00]}  Kh7 {[%clk 0:00:28]} 41. c6 {[%clk 0:00:40]}  g5 {[%clk 0:00:21]} 42. hxg5 {[%clk 0:00:35]}  Kg6 {[%clk 0:00:22]} 43. Kf1 {[%clk 0:00:35]}  Rc1+ {[%clk 0:00:16]} 44. Ke2 {[%clk 0:00:35]}  Rc2+ {[%clk 0:00:16]} 45. Ke3 {[%clk 0:00:34]}  Kh7 {[%clk 0:00:11]} 46. Rc8 {[%clk 0:00:29]}  Kg6 {[%clk 0:00:11]} 47. Rc7 {[%clk 0:00:27]}  Kh7 {[%clk 0:00:10]} 48. Rc8 {[%clk 0:00:13]}  Kg6 {[%clk 0:00:10]} 49. c7 {[%clk 0:00:07]}  Kxg5 {[%clk 0:00:09]} 50. f3 {[%clk 0:00:08]}  exf3 {[%clk 0:00:05]} 51. Kxf3 {[%clk 0:00:08]}  Rc4 {[%clk 0:00:04]} 52. Kf2 {[%clk 0:00:06]}  g6 {[%clk 0:00:05]} 53. Kf3 {[%clk 0:00:06]}  Rc3+ {[%clk 0:00:05]} 54. Kf2 {[%clk 0:00:05]}  Rc2+ {[%clk 0:00:05]} 55. Kf3 {[%clk 0:00:05]}  Rc3+ {[%clk 0:00:06]} 56. Kf2 {[%clk 0:00:05]}  Rc2+ {[%clk 0:00:04]} 57. Kf3 {[%clk 0:00:05]}  Rc3+ {[%clk 0:00:05]} 1/2-1/2


[Site "https://www.chess.com"]

[Event "Titled Tuesday Blitz May 9 Late 2023"]
[White "Remizov, Yaroslav"]
[Black "Sargsyan, Shant"]
[WhiteFideId "34134015"]
[BlackFideId "13306766"]
[WhiteElo "2400"]
[BlackElo "2628"]
[Result "0-1"]
[Round "10"]
[TimeControl "180+2"]
[Date "2023.05.09"]
[WhiteClock "0:00:05"]
[BlackClock "0:01:06"]

1. e4 {[%clk 0:03:00]}  g6 {[%clk 0:02:58]} 2. d4 {[%clk 0:03:00]}  Nf6 {[%clk 0:02:59]} 3. e5 {[%clk 0:02:58]}  Nh5 {[%clk 0:02:59]} 4. Be2 {[%clk 0:02:54]}  d6 {[%clk 0:02:59]} 5. Bxh5 {[%clk 0:02:50]}  gxh5 {[%clk 0:03:00]} 6. Qxh5 {[%clk 0:02:50]}  dxe5 {[%clk 0:03:00]} 7. Qxe5 {[%clk 0:02:32]}  Rg8 {[%clk 0:03:01]} 8. Ne2 {[%clk 0:02:32]}  Nc6 {[%clk 0:02:47]} 9. Qe4 {[%clk 0:02:31]}  Rg4 {[%clk 0:02:44]} 10. Qxh7 {[%clk 0:02:27]}  Nxd4 {[%clk 0:02:40]} 11. Nxd4 {[%clk 0:02:22]}  Qxd4 {[%clk 0:02:41]} 12. O-O {[%clk 0:02:04]}  Rxg2+ {[%clk 0:02:03]} 13. Kxg2 {[%clk 0:02:04]}  Qg4+ {[%clk 0:02:03]} 14. Kh1 {[%clk 0:02:04]}  Qf3+ {[%clk 0:02:04]} 15. Kg1 {[%clk 0:02:04]}  Bf5 {[%clk 0:02:04]} 16. Qh4 {[%clk 0:01:33]}  Be4 {[%clk 0:02:02]} 17. Qxe4 {[%clk 0:01:32]}  Qxe4 {[%clk 0:02:03]} 18. Nc3 {[%clk 0:01:32]}  Qxc2 {[%clk 0:02:03]} 19. Bf4 {[%clk 0:01:28]}  c6 {[%clk 0:01:53]} 20. Rfe1 {[%clk 0:01:08]}  Qxb2 {[%clk 0:01:45]} 21. Be5 {[%clk 0:01:02]}  Qc2 {[%clk 0:01:42]} 22. Rab1 {[%clk 0:00:56]}  b6 {[%clk 0:01:34]} 23. Ne4 {[%clk 0:00:44]}  O-O-O {[%clk 0:01:25]} 24. Rbc1 {[%clk 0:00:41]}  Qa4 {[%clk 0:01:25]} 25. Bg3 {[%clk 0:00:41]}  Kb7 {[%clk 0:01:22]} 26. Ng5 {[%clk 0:00:36]}  Qxa2 {[%clk 0:01:19]} 27. Ra1 {[%clk 0:00:33]}  Qd5 {[%clk 0:01:20]} 28. Re5 {[%clk 0:00:28]}  Qb3 {[%clk 0:01:14]} 29. Kg2 {[%clk 0:00:03]}  Rd1 {[%clk 0:01:09]} 30. Re3 {[%clk 0:00:03]}  Qd5+ {[%clk 0:01:09]} 31. Nf3 {[%clk 0:00:02]}  Rxa1 {[%clk 0:01:09]} 32. Re5 {[%clk 0:00:03]}  Qd7 {[%clk 0:01:08]} 33. Re4 {[%clk 0:00:03]}  Bg7 {[%clk 0:01:07]} 34. Rf4 {[%clk 0:00:03]}  Bf6 {[%clk 0:01:06]} 35. h4 {[%clk 0:00:04]}  Qd1 {[%clk 0:01:06]} 36. h5 {[%clk 0:00:05]}  Qh1# {[%clk 0:01:06]} 0-1


[Site "https://www.chess.com"]

[Event "Titled Tuesday Blitz May 9 Late 2023"]
[White "Ibarra Jerez, Jose Carlos"]
[Black "Bjelobrk, Igor"]
[WhiteFideId "2226332"]
[BlackFideId "4300726"]
[WhiteElo "2638"]
[BlackElo "2319"]
[Result "1-0"]
[Round "10"]
[TimeControl "180+2"]
[Date "2023.05.09"]
[WhiteClock "0:00:16"]
[BlackClock "0:00:02"]

1. e4 {[%clk 0:03:00]}  e6 {[%clk 0:02:57]} 2. d4 {[%clk 0:03:00]}  d5 {[%clk 0:02:56]} 3. Nc3 {[%clk 0:03:01]}  Bb4 {[%clk 0:02:56]} 4. Ne2 {[%clk 0:02:58]}  dxe4 {[%clk 0:02:47]} 5. a3 {[%clk 0:02:58]}  Bxc3+ {[%clk 0:02:46]} 6. Nxc3 {[%clk 0:02:59]}  Nc6 {[%clk 0:02:45]} 7. d5 {[%clk 0:02:59]}  exd5 {[%clk 0:02:39]} 8. Qxd5 {[%clk 0:03:00]}  Be6 {[%clk 0:02:37]} 9. Qxe4 {[%clk 0:03:00]}  Nf6 {[%clk 0:02:35]} 10. Qh4 {[%clk 0:03:00]}  Qe7 {[%clk 0:02:32]} 11. Be3 {[%clk 0:02:56]}  O-O-O {[%clk 0:02:29]} 12. Be2 {[%clk 0:02:51]}  Nd5 {[%clk 0:02:22]} 13. Qxe7 {[%clk 0:02:48]}  Ncxe7 {[%clk 0:02:21]} 14. Bd2 {[%clk 0:02:42]}  Nf5 {[%clk 0:02:09]} 15. O-O-O {[%clk 0:02:35]}  Nd4 {[%clk 0:02:06]} 16. Bd3 {[%clk 0:02:33]}  h6 {[%clk 0:02:01]} 17. Rhe1 {[%clk 0:02:24]}  Rhe8 {[%clk 0:02:00]} 18. Nxd5 {[%clk 0:01:53]}  Bxd5 {[%clk 0:01:58]} 19. f3 {[%clk 0:01:52]}  Rxe1 {[%clk 0:01:51]} 20. Rxe1 {[%clk 0:01:51]}  Be6 {[%clk 0:01:52]} 21. Bc3 {[%clk 0:01:47]}  c5 {[%clk 0:01:51]} 22. b4 {[%clk 0:01:43]}  c4 {[%clk 0:01:17]} 23. Bf1 {[%clk 0:01:41]}  b5 {[%clk 0:01:08]} 24. Rd1 {[%clk 0:01:34]}  Nf5 {[%clk 0:01:08]} 25. Rxd8+ {[%clk 0:01:29]}  Kxd8 {[%clk 0:01:09]} 26. g4 {[%clk 0:01:21]}  Ne3 {[%clk 0:01:09]} 27. Be2 {[%clk 0:01:22]}  f6 {[%clk 0:00:51]} 28. Bd4 {[%clk 0:01:21]}  Nd5 {[%clk 0:00:50]} 29. Bxa7 {[%clk 0:01:17]}  Nf4 {[%clk 0:00:40]} 30. Bd1 {[%clk 0:01:14]}  f5 {[%clk 0:00:35]} 31. Bd4 {[%clk 0:01:08]}  g6 {[%clk 0:00:34]} 32. Be3 {[%clk 0:01:03]}  g5 {[%clk 0:00:23]} 33. Bxf4 {[%clk 0:01:03]}  gxf4 {[%clk 0:00:23]} 34. Kd2 {[%clk 0:01:00]}  Ke7 {[%clk 0:00:20]} 35. c3 {[%clk 0:00:21]}  Kf6 {[%clk 0:00:19]} 36. gxf5 {[%clk 0:00:21]}  Kxf5 {[%clk 0:00:12]} 37. a4 {[%clk 0:00:21]}  bxa4 {[%clk 0:00:12]} 38. Bxa4 {[%clk 0:00:22]}  Kg5 {[%clk 0:00:12]} 39. Ke1 {[%clk 0:00:21]}  Kh4 {[%clk 0:00:11]} 40. Kf2 {[%clk 0:00:21]}  Kh3 {[%clk 0:00:11]} 41. Bc6 {[%clk 0:00:20]}  Kxh2 {[%clk 0:00:08]} 42. b5 {[%clk 0:00:20]}  h5 {[%clk 0:00:08]} 43. b6 {[%clk 0:00:21]}  Bc8 {[%clk 0:00:08]} 44. b7 {[%clk 0:00:18]}  Bxb7 {[%clk 0:00:08]} 45. Bxb7 {[%clk 0:00:18]}  h4 {[%clk 0:00:09]} 46. Bd5 {[%clk 0:00:18]}  Kh1 {[%clk 0:00:07]} 47. Be6 {[%clk 0:00:16]}  Kh2 {[%clk 0:00:05]} 48. Bxc4 {[%clk 0:00:16]}  Kh1 {[%clk 0:00:02]} 49. Be6 {[%clk 0:00:16]} 1-0


[Site "https://www.chess.com"]

[Event "Titled Tuesday Blitz May 9 Late 2023"]
[White "Annaberdiyev, Meylis"]
[Black "Tari, Aryan"]
[WhiteFideId "14000563"]
[BlackFideId "1510045"]
[WhiteElo "2416"]
[BlackElo "2571"]
[Result "1-0"]
[Round "10"]
[TimeControl "180+2"]
[Date "2023.05.09"]
[WhiteClock "0:00:01"]
[BlackClock "0:00:00"]

1. e4 {[%clk 0:03:00]}  e5 {[%clk 0:02:56]} 2. Nf3 {[%clk 0:03:00]}  Nc6 {[%clk 0:02:54]} 3. Bc4 {[%clk 0:02:59]}  Bc5 {[%clk 0:02:50]} 4. d3 {[%clk 0:02:51]}  Nf6 {[%clk 0:02:50]} 5. O-O {[%clk 0:02:51]}  a6 {[%clk 0:02:49]} 6. Bb3 {[%clk 0:02:50]}  Ba7 {[%clk 0:02:49]} 7. c3 {[%clk 0:02:48]}  d6 {[%clk 0:02:49]} 8. Nbd2 {[%clk 0:02:47]}  O-O {[%clk 0:02:48]} 9. h3 {[%clk 0:02:44]}  h6 {[%clk 0:02:38]} 10. Re1 {[%clk 0:02:43]}  Ne7 {[%clk 0:02:24]} 11. Nf1 {[%clk 0:02:41]}  Ng6 {[%clk 0:02:21]} 12. d4 {[%clk 0:02:41]}  Re8 {[%clk 0:02:20]} 13. Ng3 {[%clk 0:02:41]}  c6 {[%clk 0:02:19]} 14. Bc2 {[%clk 0:02:35]}  Be6 {[%clk 0:02:16]} 15. Be3 {[%clk 0:02:34]}  Qc7 {[%clk 0:02:05]} 16. Qc1 {[%clk 0:02:20]}  Kh7 {[%clk 0:02:05]} 17. Nf5 {[%clk 0:02:15]}  Bxf5 {[%clk 0:01:44]} 18. exf5 {[%clk 0:02:14]}  Nf8 {[%clk 0:01:44]} 19. dxe5 {[%clk 0:02:01]}  dxe5 {[%clk 0:01:45]} 20. Bxa7 {[%clk 0:01:51]}  Rxa7 {[%clk 0:01:46]} 21. Qe3 {[%clk 0:01:52]}  Raa8 {[%clk 0:01:35]} 22. Rad1 {[%clk 0:01:46]}  Re7 {[%clk 0:01:31]} 23. Nd2 {[%clk 0:01:40]}  Nd5 {[%clk 0:01:16]} 24. Qf3 {[%clk 0:00:58]}  f6 {[%clk 0:01:15]} 25. Ne4 {[%clk 0:00:54]}  Rd8 {[%clk 0:01:12]} 26. g3 {[%clk 0:00:54]}  Qb6 {[%clk 0:01:05]} 27. b4 {[%clk 0:00:53]}  Qc7 {[%clk 0:00:49]} 28. Rd2 {[%clk 0:00:43]}  Nb6 {[%clk 0:00:49]} 29. Rxd8 {[%clk 0:00:37]}  Qxd8 {[%clk 0:00:49]} 30. h4 {[%clk 0:00:34]}  Rd7 {[%clk 0:00:37]} 31. g4 {[%clk 0:00:26]}  Nc4 {[%clk 0:00:34]} 32. Nc5 {[%clk 0:00:15]}  Rd2 {[%clk 0:00:34]} 33. Ne6 {[%clk 0:00:14]}  Qd6 {[%clk 0:00:25]} 34. Bb3 {[%clk 0:00:14]}  Nb6 {[%clk 0:00:18]} 35. g5 {[%clk 0:00:13]}  Nd5 {[%clk 0:00:10]} 36. gxh6 {[%clk 0:00:08]}  Nxe6 {[%clk 0:00:08]} 37. fxe6 {[%clk 0:00:06]}  Qxe6 {[%clk 0:00:08]} 38. hxg7 {[%clk 0:00:07]}  Kxg7 {[%clk 0:00:07]} 39. Kh1 {[%clk 0:00:06]}  Kf8 {[%clk 0:00:03]} 40. Rg1 {[%clk 0:00:06]}  Qf7 {[%clk 0:00:03]} 41. c4 {[%clk 0:00:03]}  Nf4 {[%clk 0:00:03]} 42. c5 {[%clk 0:00:03]}  Qh7 {[%clk 0:00:02]} 43. Qg4 {[%clk 0:00:02]}  Qe4+ {[%clk 0:00:00]} 44. f3 {[%clk 0:00:01]} 1-0


[Site "https://www.chess.com"]

[Event "Titled Tuesday Blitz May 9 Late 2023"]
[White "Sieciechowicz, Marcin"]
[Black "Pichot, Alan"]
[WhiteFideId "1130170"]
[BlackFideId "110973"]
[WhiteElo "2302"]
[BlackElo "2573"]
[Result "0-1"]
[Round "10"]
[TimeControl "180+2"]
[Date "2023.05.09"]
[WhiteClock "0:00:06"]
[BlackClock "0:00:54"]

1. d4 {[%clk 0:03:00]}  Nf6 {[%clk 0:03:00]} 2. Bf4 {[%clk 0:03:01]}  d5 {[%clk 0:02:59]} 3. e3 {[%clk 0:03:01]}  c5 {[%clk 0:03:00]} 4. c3 {[%clk 0:03:01]}  Nc6 {[%clk 0:02:58]} 5. Nd2 {[%clk 0:03:01]}  cxd4 {[%clk 0:02:53]} 6. cxd4 {[%clk 0:03:01]}  g6 {[%clk 0:02:48]} 7. Bb5 {[%clk 0:02:58]}  Bg7 {[%clk 0:02:48]} 8. Ngf3 {[%clk 0:02:53]}  O-O {[%clk 0:02:48]} 9. O-O {[%clk 0:02:53]}  Nh5 {[%clk 0:02:47]} 10. Bg5 {[%clk 0:02:53]}  h6 {[%clk 0:02:46]} 11. Bh4 {[%clk 0:02:52]}  g5 {[%clk 0:02:46]} 12. Ne1 {[%clk 0:02:38]}  Nf4 {[%clk 0:02:32]} 13. Bg3 {[%clk 0:02:25]}  Ng6 {[%clk 0:02:32]} 14. Nd3 {[%clk 0:02:17]}  Qb6 {[%clk 0:02:32]} 15. Qa4 {[%clk 0:02:12]}  Bd7 {[%clk 0:02:27]} 16. Nc5 {[%clk 0:02:07]}  Be8 {[%clk 0:02:08]} 17. Rac1 {[%clk 0:02:06]}  Nxd4 {[%clk 0:02:05]} 18. Bxe8 {[%clk 0:01:41]}  Ne2+ {[%clk 0:02:04]} 19. Kh1 {[%clk 0:01:42]}  Rfxe8 {[%clk 0:01:50]} 20. Nd7 {[%clk 0:01:26]}  Qxb2 {[%clk 0:01:49]} 21. Rc2 {[%clk 0:01:08]}  b5 {[%clk 0:01:43]} 22. Rxb2 {[%clk 0:01:08]}  bxa4 {[%clk 0:01:43]} 23. Rb7 {[%clk 0:01:09]}  Rac8 {[%clk 0:01:28]} 24. Nf3 {[%clk 0:01:04]}  Rc2 {[%clk 0:01:25]} 25. Rxa7 {[%clk 0:01:01]}  Rxa2 {[%clk 0:01:23]} 26. Nb6 {[%clk 0:01:01]}  Nc3 {[%clk 0:01:21]} 27. Nd4 {[%clk 0:00:38]}  e6 {[%clk 0:01:12]} 28. Nc6 {[%clk 0:00:37]}  a3 {[%clk 0:01:10]} 29. Nd7 {[%clk 0:00:30]}  Ne4 {[%clk 0:01:05]} 30. Nb4 {[%clk 0:00:18]}  Rb2 {[%clk 0:01:03]} 31. Nd3 {[%clk 0:00:18]}  Rb3 {[%clk 0:01:00]} 32. N3c5 {[%clk 0:00:19]}  Nxc5 {[%clk 0:00:57]} 33. Nxc5 {[%clk 0:00:19]}  Rc3 {[%clk 0:00:57]} 34. Na4 {[%clk 0:00:06]}  Rc6 {[%clk 0:00:54]} 0-1


[Site "https://www.chess.com"]

[Event "Titled Tuesday Blitz May 9 Late 2023"]
[White "Grigoriants, Sergey"]
[Black "Holt, Conrad"]
[WhiteFideId "4130804"]
[BlackFideId "2034387"]
[WhiteElo "2502"]
[BlackElo "2592"]
[Result "0-1"]
[Round "10"]
[TimeControl "180+2"]
[Date "2023.05.09"]
[WhiteClock "0:00:00"]
[BlackClock "0:00:09"]

1. d4 {[%clk 0:02:56]}  d5 {[%clk 0:02:51]} 2. c4 {[%clk 0:02:52]}  c6 {[%clk 0:02:51]} 3. Nc3 {[%clk 0:02:52]}  dxc4 {[%clk 0:02:52]} 4. e4 {[%clk 0:02:49]}  b5 {[%clk 0:02:52]} 5. a4 {[%clk 0:02:49]}  b4 {[%clk 0:02:51]} 6. Na2 {[%clk 0:02:49]}  Nf6 {[%clk 0:02:49]} 7. e5 {[%clk 0:02:50]}  Nd5 {[%clk 0:02:49]} 8. Bxc4 {[%clk 0:02:50]}  Bf5 {[%clk 0:02:49]} 9. Ne2 {[%clk 0:02:43]}  e6 {[%clk 0:02:45]} 10. O-O {[%clk 0:02:31]}  Be7 {[%clk 0:02:29]} 11. Bd2 {[%clk 0:02:31]}  Nb6 {[%clk 0:02:22]} 12. Bb3 {[%clk 0:02:26]}  a5 {[%clk 0:02:21]} 13. Bc2 {[%clk 0:02:19]}  Bxc2 {[%clk 0:02:09]} 14. Qxc2 {[%clk 0:02:20]}  Qd5 {[%clk 0:02:02]} 15. Nac1 {[%clk 0:02:18]}  c5 {[%clk 0:01:54]} 16. dxc5 {[%clk 0:01:54]}  Bxc5 {[%clk 0:01:41]} 17. Nb3 {[%clk 0:01:29]}  Be7 {[%clk 0:01:40]} 18. Be3 {[%clk 0:01:29]}  N8d7 {[%clk 0:01:36]} 19. Bxb6 {[%clk 0:00:49]}  Nxb6 {[%clk 0:01:35]} 20. Rfd1 {[%clk 0:00:50]}  Qc4 {[%clk 0:01:24]} 21. Rac1 {[%clk 0:00:45]}  Qxc2 {[%clk 0:01:20]} 22. Rxc2 {[%clk 0:00:45]}  O-O {[%clk 0:01:17]} 23. Ned4 {[%clk 0:00:45]}  Rfd8 {[%clk 0:00:58]} 24. Rdc1 {[%clk 0:00:36]}  Kf8 {[%clk 0:00:50]} 25. g3 {[%clk 0:00:33]}  Nxa4 {[%clk 0:00:40]} 26. Ra1 {[%clk 0:00:22]}  Nxb2 {[%clk 0:00:21]} 27. Rxb2 {[%clk 0:00:07]}  a4 {[%clk 0:00:21]} 28. Rba2 {[%clk 0:00:07]}  a3 {[%clk 0:00:15]} 29. Rc2 {[%clk 0:00:08]}  Rdc8 {[%clk 0:00:11]} 30. Rac1 {[%clk 0:00:05]}  Rxc2 {[%clk 0:00:10]} 31. Rxc2 {[%clk 0:00:06]}  a2 {[%clk 0:00:10]} 32. Rc1 {[%clk 0:00:07]}  f6 {[%clk 0:00:07]} 33. f4 {[%clk 0:00:06]}  fxe5 {[%clk 0:00:06]} 34. fxe5 {[%clk 0:00:06]}  Kf7 {[%clk 0:00:06]} 35. Kf2 {[%clk 0:00:06]}  Bg5 {[%clk 0:00:06]} 36. Ra1 {[%clk 0:00:07]}  Ra3 {[%clk 0:00:05]} 37. Ke2 {[%clk 0:00:06]}  Bd8 {[%clk 0:00:06]} 38. Kd3 {[%clk 0:00:06]}  Bc7 {[%clk 0:00:07]} 39. Kc4 {[%clk 0:00:05]}  Bxe5 {[%clk 0:00:06]} 40. Kxb4 {[%clk 0:00:04]}  Ra8 {[%clk 0:00:06]} 41. Kc4 {[%clk 0:00:03]}  Rc8+ {[%clk 0:00:06]} 42. Kd3 {[%clk 0:00:04]}  Ra8 {[%clk 0:00:06]} 43. Re1 {[%clk 0:00:02]}  Bf6 {[%clk 0:00:06]} 44. Rf1 {[%clk 0:00:02]}  e5 {[%clk 0:00:06]} 45. Nc2 {[%clk 0:00:03]}  Rb8 {[%clk 0:00:05]} 46. Nba1 {[%clk 0:00:03]}  e4+ {[%clk 0:00:05]} 47. Kxe4 {[%clk 0:00:02]}  Rb1 {[%clk 0:00:05]} 48. Rf2 {[%clk 0:00:02]}  Kg6 {[%clk 0:00:05]} 49. Kd3 {[%clk 0:00:01]}  Bxa1 {[%clk 0:00:05]} 50. Nxa1 {[%clk 0:00:01]}  Rxa1 {[%clk 0:00:06]} 51. Rd2 {[%clk 0:00:02]}  Kf5 {[%clk 0:00:05]} 52. Kd4 {[%clk 0:00:03]}  Kg4 {[%clk 0:00:05]} 53. Kd5 {[%clk 0:00:02]}  g5 {[%clk 0:00:06]} 54. Kd4 {[%clk 0:00:03]}  h5 {[%clk 0:00:06]} 55. Kd5 {[%clk 0:00:02]}  h4 {[%clk 0:00:07]} 56. gxh4 {[%clk 0:00:02]}  gxh4 {[%clk 0:00:07]} 57. Kd4 {[%clk 0:00:03]}  Kh3 {[%clk 0:00:08]} 58. Kd3 {[%clk 0:00:03]}  Rh1 {[%clk 0:00:08]} 59. Kd4 {[%clk 0:00:04]}  Rxh2 {[%clk 0:00:08]} 60. Rd1 {[%clk 0:00:04]}  Rg2 {[%clk 0:00:08]} 61. Ke3 {[%clk 0:00:00]}  Kg3 {[%clk 0:00:09]} 0-1


[Site "https://www.chess.com"]

[Event "Titled Tuesday Blitz May 9 Late 2023"]
[White "Fernandez Guillen, Ernesto J."]
[Black "MKlose11"]
[WhiteFideId "3512428"]
[WhiteElo "2429"]
[BlackElo "2621"]
[Result "0-1"]
[Round "10"]
[TimeControl "180+2"]
[Date "2023.05.09"]
[WhiteClock "0:00:11"]
[BlackClock "0:00:17"]

1. e4 {[%clk 0:03:00]}  e6 {[%clk 0:03:00]} 2. Nf3 {[%clk 0:02:53]}  d5 {[%clk 0:02:59]} 3. Nc3 {[%clk 0:02:53]}  d4 {[%clk 0:02:56]} 4. Ne2 {[%clk 0:02:52]}  c5 {[%clk 0:02:57]} 5. d3 {[%clk 0:02:53]}  Nc6 {[%clk 0:02:56]} 6. g3 {[%clk 0:02:54]}  Nf6 {[%clk 0:02:47]} 7. Bg2 {[%clk 0:02:54]}  Bd6 {[%clk 0:02:46]} 8. O-O {[%clk 0:02:55]}  e5 {[%clk 0:02:47]} 9. Ne1 {[%clk 0:02:54]}  h5 {[%clk 0:02:38]} 10. c4 {[%clk 0:02:35]}  h4 {[%clk 0:02:35]} 11. f4 {[%clk 0:02:32]}  hxg3 {[%clk 0:02:32]} 12. hxg3 {[%clk 0:02:33]}  Bg4 {[%clk 0:02:22]} 13. f5 {[%clk 0:02:30]}  Nh5 {[%clk 0:02:10]} 14. Bf3 {[%clk 0:02:28]}  Nf6 {[%clk 0:02:05]} 15. Bxg4 {[%clk 0:02:20]}  Nxg4 {[%clk 0:02:05]} 16. Nxd4 {[%clk 0:02:20]}  exd4 {[%clk 0:01:47]} 17. Qxg4 {[%clk 0:02:17]}  Qe7 {[%clk 0:01:47]} 18. Qxg7 {[%clk 0:02:06]}  O-O-O {[%clk 0:01:45]} 19. Bg5 {[%clk 0:02:06]}  Qe8 {[%clk 0:01:33]} 20. Bxd8 {[%clk 0:02:06]}  Rg8 {[%clk 0:01:34]} 21. Qh6 {[%clk 0:02:07]}  Qxd8 {[%clk 0:01:18]} 22. Ng2 {[%clk 0:01:38]}  Rxg3 {[%clk 0:01:15]} 23. f6 {[%clk 0:01:27]}  Qg8 {[%clk 0:01:12]} 24. Kh1 {[%clk 0:01:06]}  Qg4 {[%clk 0:00:59]} 25. Qd2 {[%clk 0:00:27]}  Rh3+ {[%clk 0:00:40]} 26. Kg1 {[%clk 0:00:26]}  Bh2+ {[%clk 0:00:40]} 27. Kf2 {[%clk 0:00:22]}  Rf3+ {[%clk 0:00:37]} 28. Ke1 {[%clk 0:00:20]}  Bg3+ {[%clk 0:00:34]} 29. Kd1 {[%clk 0:00:11]}  Rxd3+ {[%clk 0:00:33]} 30. Kc2 {[%clk 0:00:12]}  Nb4+ {[%clk 0:00:21]} 31. Kc1 {[%clk 0:00:12]}  Rxd2 {[%clk 0:00:20]} 32. Kxd2 {[%clk 0:00:13]}  Be5 {[%clk 0:00:18]} 33. Rf2 {[%clk 0:00:12]}  Qg3 {[%clk 0:00:17]} 34. Raf1 {[%clk 0:00:12]}  Qd3+ {[%clk 0:00:17]} 35. Ke1 {[%clk 0:00:13]}  Nc2+ {[%clk 0:00:16]} 36. Rxc2 {[%clk 0:00:13]}  Qxc2 {[%clk 0:00:17]} 37. Rf2 {[%clk 0:00:11]}  Bg3 {[%clk 0:00:17]} 0-1


[Site "https://www.chess.com"]

[Event "Titled Tuesday Blitz May 9 Late 2023"]
[White "Bayo Milagro, Alvaro"]
[Black "Hjartarson, Johann"]
[WhiteFideId "22275240"]
[BlackFideId "2300044"]
[WhiteElo "2270"]
[BlackElo "2407"]
[Result "0-1"]
[Round "10"]
[TimeControl "180+2"]
[Date "2023.05.09"]
[WhiteClock "0:00:52"]
[BlackClock "0:01:04"]

1. Nf3 {[%clk 0:03:00]}  Nf6 {[%clk 0:02:59]} 2. g3 {[%clk 0:03:00]}  b5 {[%clk 0:02:58]} 3. Bg2 {[%clk 0:03:00]}  Bb7 {[%clk 0:02:58]} 4. O-O {[%clk 0:03:00]}  e6 {[%clk 0:02:58]} 5. d4 {[%clk 0:02:54]}  Be7 {[%clk 0:02:51]} 6. a3 {[%clk 0:02:51]}  O-O {[%clk 0:02:50]} 7. Nc3 {[%clk 0:02:51]}  a6 {[%clk 0:02:49]} 8. Qd3 {[%clk 0:02:47]}  d5 {[%clk 0:02:45]} 9. Bg5 {[%clk 0:02:40]}  Nbd7 {[%clk 0:02:44]} 10. b4 {[%clk 0:02:36]}  Ne4 {[%clk 0:02:40]} 11. Bxe7 {[%clk 0:02:36]}  Qxe7 {[%clk 0:02:39]} 12. Nd2 {[%clk 0:02:28]}  f5 {[%clk 0:02:31]} 13. f4 {[%clk 0:02:20]}  Nd6 {[%clk 0:02:21]} 14. Nf3 {[%clk 0:02:17]}  Nc4 {[%clk 0:02:21]} 15. Nd1 {[%clk 0:02:09]}  a5 {[%clk 0:02:18]} 16. c3 {[%clk 0:01:56]}  Ra7 {[%clk 0:02:10]} 17. Ne3 {[%clk 0:01:55]}  Rfa8 {[%clk 0:02:05]} 18. Nxc4 {[%clk 0:01:37]}  dxc4 {[%clk 0:01:52]} 19. Qe3 {[%clk 0:01:38]}  axb4 {[%clk 0:01:51]} 20. cxb4 {[%clk 0:01:38]}  Nf6 {[%clk 0:01:50]} 21. Ng5 {[%clk 0:01:34]}  Bxg2 {[%clk 0:01:44]} 22. Kxg2 {[%clk 0:01:34]}  Nd5 {[%clk 0:01:35]} 23. Qe5 {[%clk 0:01:30]}  Ra6 {[%clk 0:01:28]} 24. g4 {[%clk 0:01:14]}  h6 {[%clk 0:01:24]} 25. Nf3 {[%clk 0:01:01]}  Rxa3 {[%clk 0:01:23]} 26. Rxa3 {[%clk 0:00:58]}  Rxa3 {[%clk 0:01:22]} 27. gxf5 {[%clk 0:00:57]}  Re3 {[%clk 0:01:04]} 28. f6 {[%clk 0:00:52]}  Qf7 {[%clk 0:01:04]} 0-1


[Site "https://www.chess.com"]